Cogmind - Beta 16 --- EXPLORER MODE // 2025.12.12 @ 11:56:10 Player: K.K.Y. Result: Destroyed by KW-9RF(R) with Subdweller Laser Performance ------------- Evolutions (0) 0 Regions Visited (3) 600 Robots Destroyed (29) 145 Value Destroyed (720) 720 Prototype IDs (13) 260 Alien Tech Used (0) 0 Bonus (0) 0 TOTAL SCORE: 1725 Bonus ------- None Cogmind --------- Core Integrity 0/250 Matter 300/300 Energy 75/100 System Corruption 0% Temperature Cool (6) Movement Core (150) Ox2 Location -10/Subcaves Parts ------- > --- POWER (1) -------- (None) > --- PROPULSION (3) --- (None) > --- UTILITY (2) ------ Structural Scanner Sensor Array > --- WEAPON (2) ------- Improved Medium Laser Improved Medium Laser > --- INVENTORY (5) ---- Light Humpback Structural Scanner Mining Laser Multitool Peak State ------------ > --- POWER ------------ Ion Engine > --- PROPULSION ------- Flight Unit Flight Unit Flight Unit > --- UTILITY ---------- Structural Scanner Sensor Array > --- WEAPON ----------- Improved Medium Laser Improved Medium Laser > --- INVENTORY -------- Weight Redist. System Structural Scanner Improved Medium Laser Improved Medium Laser Mining Laser [Rating: 13] Favorites ----------- Power Ion Engine Engine Ion Engine Power Core Light Nuclear Core Propulsion Flight Unit Wheel Wheel Flight Unit Flight Unit Utility Structural Scanner Device Structural Scanner Weapon Improved Medium Laser Energy Gun Improved Medium Laser Special Weapon Mining Laser Build | -11 -10 -10 -10 ------- Run | Yrd Mat Min Sub Slots Evolved 1 | . 1 . . Power . | . . . . Propulsion 1 | . 1 . . Utility . | . . . . Weapon . | . . . . Parts Attached 20 | 5 8 3 4 Power 3 | 1 1 . 1 Engine 2 | 1 1 . . Core 1 | . . . 1 Reactor . | . . . . Propulsion 8 | . 5 3 . Treads . | . . . . Leg . | . . . . Wheel 3 | . 3 . . Hover . | . . . . Flight 5 | . 2 3 . Utility 2 | 2 . . . Device 2 | 2 . . . Storage . | . . . . Processor . | . . . . Hackware . | . . . . Protection . | . . . . Artifact . | . . . . Weapon 7 | 2 2 . 3 Energy Gun 6 | 2 2 . 2 Energy Cannon . | . . . . Ballistic Gun . | . . . . Ballistic Cannon . | . . . . Launcher . | . . . . Special Weapon 1 | . . . 1 Impact Weapon . | . . . . Slashing Weapon . | . . . . Piercing Weapon . | . . . . Special Melee Weapon . | . . . . Unidentified Prototypes 1 | . 1 . . Parts Lost 9 | . . 2 7 Power 2 | . . . 2 Propulsion 5 | . . 2 3 Utility . | . . . . Weapon 2 | . . . 2 Highest Loss Streak 3 | . . 1 3 To Critical Strikes . | . . . . Average Backups 4 | 1 4 5 4 Power . | . . . . Propulsion . | . 1 . . Utility 1 | . . 2 2 Weapon 2 | . 2 3 1 Tool/Special . | . . . . Unused Backups 6 | . 1 . 5 Power . | . . . . Propulsion . | . . . . Utility 3 | . 1 . 2 Weapon 2 | . . . 2 Tool/Special 1 | . . . 1 Average Slot Usage (%) 76 | . 77 83 71 Engine 7 | . 12 12 1 Core 4 | . . . 10 Wheel 1 | . 6 . . Flight 12 | . 8 20 9 Device 25 | . 25 25 25 Energy Gun 23 | . 24 25 20 Special Weapon 1 | . . . 3 Peak Build Rating 13 | 5 12 13 13 Average Rating 10 | 4 8 11 11 On Entrance 7 | . 5 12 13 Avg Prop Armor Cover (%) . | . . . . Naked Turns . | . . . . Heaviest Build 13 | 8 13 13 13 Greatest Support 30 | 3 30 12 12 Greatest Overweight (x) 4 | 2 3 3 4 Average Overweight (x) 1 | 1 1 1 2 Largest Inventory Capacity 5 | 5 5 5 5 Average Capacity 5 | 5 5 5 5 Most Carried 5 | 4 5 5 5 Average Carried 4 | 1 4 5 4 Final Capacity 5 | 5 5 5 5 Final Carried 5 | 4 5 5 5 Class Distribution -------------------- 100% | Hacker-Mutant Dominant Class ---------------- Hacker-Mutant | -10/Materials Hacker-Mutant | -10/Mines Hacker-Mutant | -10/Subcaves Resources | -11 -10 -10 -10 ----------- Run | Yrd Mat Min Sub Matter Collected 427 | 250 73 65 39 Remotely . | . . . . Salvage Created 1104 | 131 513 201 259 Parts 61 | 7 26 9 19 Haulers Intercepted 2 | . 2 . . Recyclers Shooed 2 | . 2 . . Parts Field Recycled . | . . . . Retrieved Matter . | . . . . Parts Self-Destructed . | . . . . Prevented . | . . . . Parts Restored . | . . . . Kills | -11 -10 -10 -10 ------- Run | Yrd Mat Min Sub Combat Hostiles Destroyed 18 | . 6 5 7 Guns 17 | . 5 5 7 Classes Destroyed 8 | 2 5 . 1 Worker 1 | . 1 . . Tunneler 3 | 2 1 . . Hauler 2 | . 2 . . Recycler 2 | 1 1 . . Watcher 3 | . 3 . . Swarmer 3 | . 2 1 . Grunt 8 | . 4 4 . Subdweller 7 | . . . 7 Best Kill Streak 3 | 2 3 2 2 Combat Bots Only 3 | . 3 2 2 Max Kills in Single Turn 2 | 1 2 1 1 Gunslinging . | . . . . Exploded . | . . . . Melee . | . . . . Uniques/NPCs Destroyed . | . . . . Combat | -11 -10 -10 -10 -------- Run | Yrd Mat Min Sub Hostile Shots Fired 99 | . 21 30 48 Missed 23 | . 6 4 13 Hits 76 | . 15 26 35 Projectile 76 | . 15 26 35 Critical Strikes 4 | . 1 1 2 Damage Taken 874 | . 123 193 558 Core 261 | . 70 39 152 Absorbed by Shields . | . . . . Ignored by Resistances 509 | . 77 125 307 Core Remaining (%) 100 | 100 . . . Volleys Fired 75 | 6 24 15 30 Largest 2 | 2 2 2 2 Hottest 156 | 90 112 112 156 Shots Fired 150 | 12 48 30 60 Gun 143 | 12 48 30 53 Cannon . | . . . . Launcher . | . . . . Special 7 | . . . 7 Kinetic . | . . . . Thermal 150 | 12 48 30 60 Explosive . | . . . . Electromagnetic . | . . . . Robot Hit Streak 34 | 10 34 13 21 Robot Miss Streak 2 | . 2 2 1 Penetration Max . | . . . . Secondary Targets 5 | . 2 1 2 Max Gunslinging Chain 1 | . 1 1 1 Shots Hit Robots 109 | 10 40 22 37 Core Hits 46 | 4 20 7 15 Critical Kills . | . . . . Critical Parts Destroyed . | . . . . Critical Strikes 13 | 1 6 1 5 Burn 13 | 1 6 1 5 Melee Attacks . | . . . . Impact . | . . . . Slashing . | . . . . Piercing . | . . . . Sneak Attacks . | . . . . Combat Hostiles . | . . . . Follow-up Attacks . | . . . . Damage Inflicted 1663 | 121 577 371 594 Guns 1663 | 121 577 371 594 Cannons . | . . . . Explosions . | . . . . Melee . | . . . . Ramming . | . . . . Kinetic . | . . . . Thermal 1663 | 121 577 371 594 Explosive . | . . . . Electromagnetic . | . . . . Impact . | . . . . Slashing . | . . . . Piercing . | . . . . Highest Corruption . | . . . . Average Corruption . | . . . . Corruption Purged . | . . . . Corruption Blocked . | . . . . Overload Shots . | . . . . Overflow Damage . | . . . . Projectiles . | . . . . Explosions . | . . . . Melee . | . . . . Knockbacks . | . . . . Impact . | . . . . Kinetic . | . . . . Secondary . | . . . . Self-Inflicted Damage . | . . . . Shots . | . . . . Rammed . | . . . . Targets Rammed . | . . . . Kicked . | . . . . Crushed . | . . . . Highest Temperature 453 | 150 270 453 170 Average Temperature 114 | 64 81 205 45 Received Heat Transfer 697 | . 126 186 385 Effects 2 | . . 2 . Shutdowns 1 | . . 1 . Matter Decay 1 | . . 1 . Siege Activations . | . . . . Martial Activations . | . . . . Shielding Activations . | . . . . Robots Disrupted . | . . . . Combat Hostiles . | . . . . Robots Corrupted . | . . . . Combat Hostiles . | . . . . Parts Fried . | . . . . Impact Corruptions . | . . . . Robots Melted 1 | . 1 . . Combat Hostiles 1 | . 1 . . Parts Melted 14 | 1 1 4 8 Heat Transferred 4778 | 396 1829 888 1665 Parts Sabotaged . | . . . . Parts Stolen . | . . . . Parts Stripped . | . . . . Power Chain Reactions . | . . . . Alert | -11 -10 -10 -10 ------- Run | Yrd Mat Min Sub Maximum Alert Level . | . . . . Low Security (%) 100 | 100 100 100 . Level 1 . | . . . . Level 2 . | . . . . Level 3 . | . . . . Level 4 . | . . . . Level 5 . | . . . . High Security . | . . . . Max Security . | . . . . Peak Influence 95 | 10 95 40 . Initial . | . . . . Average 11 | 1 20 2 . Influence Increases 381 | 15 246 120 . Destroy 0b10 Robot/C 220 | . 120 100 . Destroy 0b10 Robot/NC 55 | 15 40 . . Destroy Leader 60 | . 40 20 . Destroy Structure 1 | . 1 . . Lose Combat Pursuer 45 | . 45 . . Influence Decreases 381 | 15 246 120 . Time Decay 371 | 15 246 110 . Lost Part 10 | . . 10 . Squads Dispatched . | . . . . Investigation . | . . . . Extermination . | . . . . Reinforcement . | . . . . Assault . | . . . . Garrison . | . . . . Intercept . | . . . . Searches Triggered . | . . . . Construction Impeded . | . . . . Haulers Reinforced . | . . . . Active Scanning Responses . | . . . . Cargo Convoy Interrupts . | . . . . Stealth | -11 -10 -10 -10 --------- Run | Yrd Mat Min Sub Distress Signals 1 | . 1 . . Communications Jammed . | . . . . Distress Signals . | . . . . Times Spotted 28 | . 14 5 9 Peak Tracking Total 7 | . 7 2 2 Tactical Retreats 2 | . 2 . . Traps | -11 -10 -10 -10 ------- Run | Yrd Mat Min Sub Traps Triggered 2 | . 1 . 1 Indirectly . | . . . . Trap Hack Attempts . | . . . . Triggered . | . . . . Disarmed . | . . . . Reprogrammed . | . . . . Reused . | . . . . Traps Extracted . | . . . . Installed . | . . . . Triggered . | . . . . Machines | -11 -10 -10 -10 ---------- Run | Yrd Mat Min Sub Machines Disabled 1 | . . . 1 Max in Single Turn 1 | . . . 1 Machines Repaired . | . . . . Machines Dismantled . | . . . . Machines Sabotaged . | . . . . Overloaded Fab Kills . | . . . . Hacking | -11 -10 -10 -10 --------- Run | Yrd Mat Min Sub Machines Accessed 1 | . . . 1 Terminals . | . . . . Fabricators . | . . . . Repair Stations . | . . . . Recycling Units . | . . . . Scanalyzers . | . . . . Garrison Access . | . . . . Total Hacks 1 | . . . 1 Successful 1 | . . . 1 Failed . | . . . . Catastrophic . | . . . . Database Lockouts . | . . . . Manual . | . . . . Terminals . | . . . . Fabricators . | . . . . Repair Stations . | . . . . Recycling Units . | . . . . Scanalyzers . | . . . . Garrison Access . | . . . . Terminal Hacks 1 | . . . 1 Proto ID Catalog 1 | . . . 1 Fabricator Hacks . | . . . . Repair Station Hacks . | . . . . Recycling Unit Hacks . | . . . . Scanalyzer . | . . . . Garrison Access Hacks . | . . . . Unauthorized Hacks . | . . . . Terminals . | . . . . Fabricators . | . . . . Repair Stations . | . . . . Recycling Units . | . . . . Scanalyzers . | . . . . Garrison Access . | . . . . Data Cores Recovered . | . . . . Used . | . . . . Hacking Detections . | . . . . Full Trace Events . | . . . . Feedback Events . | . . . . Feedback Blocked . | . . . . Robot Schematics Acquired . | . . . . Robots Built . | . . . . Authchips . | . . . . Time . | . . . . Total Robot Build Rating . | . . . . Part Schematics Acquired . | . . . . Parts Built . | . . . . Authchips . | . . . . Time . | . . . . Total Part Build Rating . | . . . . Part Studies Acquired . | . . . . Parts Repaired . | . . . . Time . | . . . . Parts Recycled . | . . . . Recycled Matter . | . . . . Retrieved Matter . | . . . . Retrieved Components . | . . . . Parts Scanalyzed . | . . . . Part Schematics Acquired . | . . . . Parts Damaged . | . . . . Bothacking | -11 -10 -10 -10 ------------ Run | Yrd Mat Min Sub Used RIF Installer . | . . . . Robots Hacked . | . . . . Non-combat . | . . . . Combat . | . . . . Robot Hacks Applied . | . . . . Relay Couplers Released . | . . . . Fabnet Peak Effective % . | . . . . Robots Rewired . | . . . . Allies Hacked . | . . . . Hacks Repelled . | . . . . Allies | -11 -10 -10 -10 -------- Run | Yrd Mat Min Sub Total Allies . | . . . . Largest Group . | . . . . Highest-Rated Group . | . . . . Highest-Rated Ally . | . . . . Total Orders . | . . . . Ally Attacks . | . . . . Total Damage . | . . . . Kills . | . . . . Allies Corrupted . | . . . . Allies Melted . | . . . . Intel | -11 -10 -10 -10 ------- Run | Yrd Mat Min Sub Active Infowar (turns) 2924 | 84 808 867 1165 Sensors 2923 | 83 808 867 1165 Structural 2924 | 84 808 867 1165 Robot Analysis Total . | . . . . Derelict Logs Recovered . | . . . . Drone Launches . | . . . . Drone Recoveries . | . . . . Exploration | -11 -10 -10 -10 ------------- Run | Yrd Mat Min Sub Turns Passed 2929 | 89 808 867 1165 Spaces Moved 1582 | 48 579 450 505 Core 435 | 48 207 . 180 Treads . | . . . . Legs . | . . . . Wheels 148 | . 148 . . Hover . | . . . . Flight 999 | . 224 450 325 Fastest Speed 50 | 50 80 114 114 Average Speed 163 | 120 120 178 203 Slowest Speed 280 | 150 200 280 280 Overloaded Moves . | . . . . Propulsion Burnouts . | . . . . Robots Hopped . | . . . . Potential Cave-ins . | . . . . Cave-ins Triggered . | . . . . Exploration Rate (%) 57 | 4 90 89 45 Regions Visited 3 Branch Regions 2 Pre-discovered Areas . | . . . . Known Exits Taken 3 | 1 1 1 . Unknown Exits Taken . | . . . . Scrap Searched 2 | . . . 2 Spaces Dug . | . . . . Terrain Destroyed . | . . . . Melee . | . . . . Projectile . | . . . . AOE . | . . . . Terrain Rammed . | . . . . Walls Destroyed . | . . . . Machines Disabled . | . . . . Actions | -11 -10 -10 -10 --------- Run | Yrd Mat Min Sub Total 1758 | 67 642 480 569 Wait 50 | . 15 13 22 Move 1579 | 47 578 449 505 Hop . | . . . . Pick Up 21 | 9 8 . 4 Fast Attach 5 | . 1 3 1 Attach 11 | 5 4 . 2 Detach 2 | . 2 . . Swap 5 | . 3 . 2 Drop 10 | . 7 . 3 Fire 75 | 6 24 15 30 Melee . | . . . . Ram . | . . . . Kick . | . . . . Crush . | . . . . Escape Stasis . | . . . . Rewire . | . . . . Trap . | . . . . Miscellaneous . | . . . . Route ------- -11/Scrapyard -10/Materials (discovered 4 exits: *Mat x2 / *Min / Sub) -10/Mines (discovered 3 exits: *Mat x2 / *Sub) -10/Subcaves (discovered 1 exit: *Mat) History --------- Turn | Location | Event 5 | -11/Scrapyard | Identified exit to Materials 5 | -11/Scrapyard | Discovered exit to Materials (range 14) 90 | -11/Scrapyard | Entered Materials 90 | -10/Materials | Evolved 1 slot: Propulsion x1 195 | -10/Materials | Identified exit to Subcaves 195 | -10/Materials | Discovered exit to Subcaves (range 12) 249 | -10/Materials | Identified exit to Materials 249 | -10/Materials | Discovered exit to Materials (range 9) 300 | -10/Materials | Build established: Hacker-Mutant 579 | -10/Materials | Identified exit to Mines 579 | -10/Materials | Discovered exit to Mines (range 8) 699 | -10/Materials | Discovered exit to Materials (range 5) 898 | -10/Materials | Entered Mines 898 | -10/Mines | Discovered exit to Materials (range 9) 908 | -10/Mines | Met a Derelict bent on vengeance 1058 | -10/Mines | Discovered exit to Materials (range 9) 1122 | -10/Mines | Found a Scrap Suit stashed away for nefarious purposes 1752 | -10/Mines | Discovered exit to Subcaves (range 6) 1765 | -10/Mines | Entered Subcaves 1766 | -10/Subcaves | Approached by a straggling Scientist 1860 | -10/Subcaves | Ambushed by Subdwellers from Twisted Machinery 1864 | -10/Subcaves | Core integrity fell below 50% 1882 | -10/Subcaves | Identified exit to Materials 1882 | -10/Subcaves | Discovered exit to Materials (range 15) 1907 | -10/Subcaves | Lost 3 parts (1p2n) 2066 | -10/Subcaves | A swath of the cavern ceiling suddenly collapsed 2261 | -10/Subcaves | Visited 4L-MR0's lab 2455 | -10/Subcaves | Core integrity fell below 20% 2930 | -10/Subcaves | Destroyed by KW-9RF(R) with Subdweller Laser Last Messages --------------- 02464_ Sub. Monowheel melted. 02464_ Disposable Heat Sink melted. 02464_ D5-O0K(R) destroyed. 02469_ Acquired 5 matter. 3Q-C4V(c): "I think it's somewhere southwest of here" 02582_ Dropped Battle Rifle. 02582_ Acquired Battle Cannon. 3Q-C4V(c): "I think it's somewhere southwest of here" 02696_ Dropped Weight Redist. System. 02696_ Dropped Battle Cannon. 02697_ Acquired Lgt. Humpback. 3Q-C4V(c): "I think it's somewhere southwest of here" 3Q-C4V(c): "I think it's somewhere south of here" 02915_ Lgt. Nuclear Core destroyed. 02922_ 61-LP9(R) suffers critical hit (Burn). 02925_ 61-LP9(R) destroyed. Map ----- +----------------------------------------------------+ | | | | | | | | | | | | | | | | | | | ?????????????????????????????????????????????????? | | ?????????????????????????????????????????????????? | | ?????????????????????????????????????????????????? | | ?????????????????????????????????????????????????? | | ?????????????????????????????????????????????????? | | ?????????????????????????????????????????????????? | | ?????????????????????????????????????????????????? | | ?????????????????????????????????????????????????? | | ?????????????????????????????###?????????????????? | | ?????????????????????????????###?????????????????? | | ????????????????????????????? ########???????????? | | ?????????????????????????## ""########???????????? | | ?????????????????????????### #" ???????????? | | ??????????????????????####<$"## ?????????????? | | ?????????????????????#####< ##" ## "???????????? | | ?????????????????????### R####" "########???????? | | ?????????????????????## !@## " ### # ???????? | | ???????????????###???## = ??????? | | ?????????????# ##???### ??????? | | ????????????### ?? #### ##### ? ??????# | | ????????????##" ? ### ###### ??????# | | ????????????"" ## ###### ?????# | | ?????????????"# #### #?#### | | ?????????????#### ##?#### | | ???????????????### #### # ###?## | | ???????????????############ ## ###### | | ????????????????###### ### ##### ## ## ### | | ????????????????## ## ##### ####### | | ????????????????## ## ######### | | ????????????????#### #### ###### # | | ??????????????????#### ##### ####### | | ??????????????????#### ###### ###### | | ????????????????????## ##### ###?# | | ????????????????????#### ### ## #### | | ????????????????????#### ### ### #### | | ???????????????????? # ## ##### ### | | ???????????????????? ### ###### ##### | | ????????????????? ### ###### ### | | ????????????????? # # ### ## | | ????????????????? ###### ##### | | ?????????????????############## | +----------------------------------------------------+ Best States ------------- Heat Dissipation 25 Energy Generation 14 Energy Capacity 250 Matter Stores 300 Matter Capacity 300 Sight Range 16 Robot Scan Range 14 Terrain Scan Density 10 Resistance: KI 35 Resistance: TH 35 Resistance: EX 35 Resistance: EM 35 Resistance: I 35 Resistance: S 35 Resistance: P 35 Evasion (%) 50 Offensive Hacking 20 Item Schematics ----------------- None Robot Schematics ------------------ None Fabricated ------------ Nothing Repaired ---------- Nothing Studied --------- None Alien Tech Used ----------------- None Achievements -------------- None Challenges ------------ None Game ------ Seed DefenseAngularShell Manual? 0 Play Time 00:17:48 Cumulative 193.6 hours Start 2025.12.12 @ 10:37:27 End 2025.12.12 @ 11:56:10 Sessions 1 Manual Loads 0 Difficulty Explorer Special Mode None Game No. 280 Rogue 0 Adventurer 0 Explorer 280 Win Type - Total 0 Types 0/0/0/0/0/0/0/0/0/0 Lore% 71 Gallery% 67 Achievement% 53 Wizard Run 0 Options --------- Layout 1 ASCII 0 Keyboard 0 Movement Mouse Keybinds 0 Fullscreen 1 Font 24/Smallcaps Map View 50x35 Zoom Use 0% Tactical HUD 1 Map Filters NONE Filters NONE Steam 1 RUN: 11dc94f9-e4a7-47c2-8044-8b54eb4b9a00